Workbook

Sheet Instrucciones
B3: INSTRUCCIONES PARA EL DILIGENCIAMIENTO DEL GADF-F-091 TEST DE INDICIOS DE DETERIORO DEL VALOR DE LOS ACTIVOS ASOCIADOS Al MODO DE TRANSPORTE CARRETERO
B5: Diligencie el Test de los Bienes de usos público (Test BUP) y el Test de Activos no generadores de efectivo (Test ANGE) para las Propiedades, planta y equipos y activos intangibles que se consideren materiales. Para cada Test detalle la siguiente información:
B6: Contrato de Concesión No: | C6: Identificar el N.º del Contrato que se ha otorgado a la Concesión.
B7: Proyecto: | C7: Indicar nombre completo del proyecto
B8: Concesionario: | C8: Indicar La Razón Social
B9: NIT: | C9: Diligenciar el número de identificación tributaria NIT del concesionario
B10: Fecha de evaluación | C10: Diligenciar la fecha de elaboración del test, la cual debe corresponder al último día del año (31/12/20XX) o a la fecha en la cual se evidencio el indico de deterioro.
B12: TEST BIENES USOS PÚBLICOS-BUP
B13: FASE 1-TEST
B14: La fase 1 del test de deterioro de bienes de uso público se realizará de manera global para la totalidad de los activos de bienes de uso público (Infraestructura en servicio, en construcción), es decir, un (1) test que comprenda todas las clasificaciones. Contestar todas las preguntas seleccionando Sí o No, según corresponda, en caso de que todas las respuestas sean "NO", se concluirá que no se presentan indicios de deterioro y habrá finalizado el diligenciamiento del test. En caso que alguna de las preguntas tenga una respuesta afirmativa valor "SI", se indicará valor "SÍ" en la casilla "INDICIO" y se deberá diligenciar la fase 2 del test.
B15: FASE 2- INFORMACIÓN PARA LA COMPROBANCIÓN DE DETERIOR DE VALOR
B16: En este cuadro se debe diligenciar la información de manera particular por unidad de activo, indicando los datos del activo al que se le identificó algún(os) indicio(s) de deterioro.
B17: En caso de presentar indicios de deterioro se requiere que el concesionario allegue a la Agencia como evidencia para documentar y soportar la existencia de indicios del deterioro de valor, según aplique: i) opiniones de experto, a través de informes que documenten las evidencias del indicio de deterioro de valor de los activos Bienes de uso público y Activos no generadores de efectivo; ii) planos, fotografías, videos o declaraciones del personal acerca de la situación operativa de los activos cuyo deterioro físico se pretende probar; iii) indicadores de gestión; iv) y demás -soportes que la Agencia considere pertinentes para demostrar el referido deterioro.
B18: Estado: | C18: Corresponde a la etapa en la cual se Encuentra el activo ya sea "en construcción" y/o "En servicio"
B19: Activo | C19: Seleccione la clasificación a la cual corresponde el activo de infraestructura de transporte que presenta indicios de deterioro de valor.
B20: Detalle de activo: | C20: Describir con mayor detalle la unidad de activo a la que se le identifico el indicio de deterioro
B21: Proporción de la parte dañada (%) | C21: Si se conoce la proporción o porcentaje (%) de la parte dañada con relación al activo total que presenta daño físico o perdida de la capacidad para prestar servicios, indique lo, de lo contrario no diligencie la casilla.
B22: Fecha puesta en Servicio/ operación (dd/mm/aaaa) | C22: Indique la fecha completa de puesta en servicios u operación del activo de infraestructura que presenta indicios de deterioro, tomando como base el Formato.
B23: Valor de la inversión inicial (COP): | C23: Indique el valor del activo.
B24: Indicio de deterioro fue identificado en el activo | C24: Seleccionar el valor "SI" o "NO" de acuerdo a las opciones indicadas o en ambas según aplique.
B25: Costo de reposición: | C25: Está determinado por el costo en que se incurriría en una fecha determinada para reponer la capacidad operativa del activo existente. Indique el valor en pesos colombianos
B26: Costo de rehabilitación | C26: Está determinado por el costo en que se incurrirá para realizar intervenciones que restablezcan las condiciones operativas de la infraestructura o equipo. Indique el valor en pesos colombianos
B27: PARTE 4 - FOTOGRAFIAS DEL PROYECTO | C27: Incluir el registro fotográfico que de cuenta del estado en que se encuentra activo que presenta indicios de deterioro.
B29: TEST ACTIVOS NO GENERADORES DE EFECTIVO -ANGE
B30: FASE 1-TEST
B31: La fase 1 del test de deterioro de activos no generadores de efectivo se realizará únicamente cuando se supere el umbral de materialidad establecido por la Agencia. Este test, deberá diligenciarse de manera global (para la totalidad de las propiedades, planta y equipo y, sistemas (Intangibles)), es decir, un (1) test que comprenda todas las clasificaciones. Contestar todas las preguntas seleccionando Sí o No, según corresponda, en caso de que todas las respuestas sean "NO", se concluirá que no se presentan indicios de deterioro y habrá finalizado el diligenciamiento del test. En caso de que alguna de las preguntas tenga una respuesta afirmativa valor "SI", se indicará valor "SÍ" en la celda "INDICIO" y se debe pasar a la fase 2 del test.
B32: FASE 2 - INFORMACIÓN PARA LA DETERMINACIÓN DEL VALOR DEL SERVICIO RECUPERABLE
B33: En este cuadro se debe diligenciar la información de manera particular por unidad de activo al que se le identificó algún(os) indicio(s) de deterioro.
B34: En caso de presentar indicios de deterioro se requiere que el concesionario allegue a la Agencia como evidencia para documentar y soportar la existencia de indicios del deterioro de valor, según aplique: i) opiniones de experto, a través de informes que documenten las evidencias del indicio de deterioro de valor de los activos bienes de uso público y Activos no generadores de efectivo; ii) planos, fotografías, videos o declaraciones del personal acerca de la situación operativa de los activos cuyo deterioro físico se pretende probar; iii) indicadores de gestión; iv) y demás -soportes que la Agencia considere pertinentes para demostrar el referido deterioro.
B35: Tipo de Activo | C35: De la lista desplegable, seleccione el tipo de activo que presenta indicios de deterioro de valor ya sea Propiedades, planta y equipos o intangibles.
B36: Clasificación del activo | C36: De la lista desplegable, la clasificación del activo que presenta indicios de deterioro de valor, , tomando como base el formato GCSP-F-301.
B37: Detalle de activo | C37: Describir con mayor detalle la unidad de activo a la que se le identifico el indicio de deterioro, tomando como base el formato GCSP-F-301.
B38: Valor del activo/Valor de la inversión inicial | C38: Indique el valor del activo o valor de la inversión de Propiedades, planta y equipos e intangible que presenta indicios de deterioro, tomando como base la información contenida en el formato GCSP-F-301.
B39: Fecha puesta en Servicio/ operación: (dd/mm/aaaa) | C39: Indique la fecha completa de puesta en servicios u operación de activo de Propiedades, planta y equipos e intangible que presenta indicios de deterioro, tomando como base la información contenida en el formato GCSP-F-301.
B40: Indicio de deterioro fue identificado en el activo (Interno/Externo) | C40: Seleccionar el valor "SI" o "NO" de acuerdo a las opciones indicadas o en ambas según aplique.
B41: Información para la determinación del valor del servicio recuperable (COP) | C41: Indique los datos de costo de reposición, costo de rehabilitación, valor de mercado si existiere y los costos de disposición. Con los datos indicados, la Agencia determinará si existe lugar al deterioro de activos.
B42: Valor Costo de Reposición (COP) | C42: Si "Aplica", Indique el valor en el que se incurriría en una fecha determinada para reponer la capacidad operativa del activo existente, caso contrario no diligenciar.
B43: Valor Costo de Rehabilitación (COP) | C43: Si "Aplica", Indique el valor en el que se incurriría en una fecha determinada para reponer la capacidad operativa del activo existente, caso contrario no diligenciar.
B44: Valor de mercado:
B45: Existiere Valor de Mercado | C45: Indique "SI" o "NO" según aplique
B46: Valor de Mercado (COP) | C46: Si "Aplica" valor de mercado, indique el valor por el cual el activo puede ser intercambiado en una transacción realizada en condiciones de independencia mutua. Determinado mediante proveedores de precios, de una entidad pública o privada o de una persona con la idoneidad necesaria para establecer precios.
B47: Costo de disposición | C47: Si "Aplica", indique el valor costos de carácter legal, timbres y otros impuestos, costos de desplazar los activos, los costos de desmantelamientos, comisión de intermediarios en la venta de activos (remates), entre otros, en los que se incurre para dejar el activo en condiciones para la venta.
B48: PARTE 4 - FOTOGRAFIAS DEL PROYECTO | C48: Incluir el registro fotográfico que de cuenta del estado en que se encuentra activo que presenta indicios de deterioro.

Sheet TEST - BUP
C2: TEST DE INDICIOS DE DETERIORO DEL VALOR DE LOS ACTIVOS ASOCIADOS Al MODO DE TRANSPORTE CARRETERO | Q2: En contrucción | R2: Red de carretera
C3: GESTIÓN ADMINISTRATIVA Y FINANCIERA | Q3: En servicio | R3: Terrenos
C4: CÓDIGO | E4: GADF-F-091 | H4: VERSIÓN | I4: 003 | L4: FECHA | M4: 2025-01-23
B6: Proyecto de concesión | E6: Contrato de Concesión | H6: NIT | J6: Concesionario | M6: Fecha de evaluación | T6: 2024-12-31
B9: FASE 1 - TEST | M9: INDICIO
B10: Contestar todas las preguntas de acuerdo al estado de los activos correspondientes a Bienes de Uso Público: Infraestructura y/o terrenos en construcción y/o en servicio. | M10: Si alguna de las respuestas fue afirmativa, se considera que SI existe indicio de deterioro. | Z10: Anexo | AD10: ANI
B11: Indicios de deterioro por daños físicos o capacidad de prestación de servicio | Z11: 2.INFRAESTRUCTURA EN CONSTRUCCION
B12: ¿Se dispone de evidencia de deterioro físico grave, severo o de gran magnitud originado en factores extraordinarios (diferentes al desgaste del activos por el uso en el tiempo) en la infraestructura de transporte y, no se espera su reparación en un periodo inferior a 12 meses? | K12: NO | M12: =+IF(AND(K12="NO",K13="NO"),"NO","SI") -> NO | Z12: 4.DRAGADOS - CAPITAL
B13: Se dispone de evidencia que permita determinar que el activo ha perdido significativamente su capacidad para prestar servicios, (por ejemplo, como consecuencia del daño presentado se debió ordenar el cierre total para el servicio de la infraestructura) originado en daño físico grave o severo, a largo plazo (más de 12 meses)? | K13: NO
B15: FASE 2 - INFORMACIÓN PARA LA DETERMINACION DEL VALOR DEL SERVICIO RECUPERABLE
B16: Estado | C16: Activo | D16: Detalle de activo | G16: Proporción de la parte dañada (%) | H16: Fecha puesta en Servicio/ operación (dd/mm/aaaa) | J16: Valor de la inversión inicial (COP) | K16: Indicio de deterioro fue identificado en el activo | M16: Costo de reposición | N16: Costo de rehabilitación
K17: Daños físicos | L17: Pérdida en capacidad de prestación de servicios
B25: PARTE 4 - FOTOGRAFIAS DEL PROYECTO

Sheet TEST- ANGE
C2: TEST DE INDICIOS DE DETERIORO DEL VALOR DE LOS ACTIVOS ASOCIADOS AL MODO DE TRANSPORTE CARRETERO
C3: GESTIÓN ADMINISTRATIVA Y FINANCIERA
C4: CÓDIGO | F4: GADF-F-091 | K4: VERSIÓN | N4: 3 | Q4: FECHA | T4: ='TEST - BUP'!M4 -> 2025-01-23
B6: Proyecto de concesión | F6: Contrato de Concesión | J6: NIT | N6: Concesionario | T6: Fecha de evaluación
B9: FASE 1 - TEST
B10: Contestar todas las preguntas de acuerdo al estado de los activos correspondientes a Activos no generadores de efectivo: Propiedades, planta y equipo y activos intangibles. Activos No Generadores de Efectivo: Propiedad Planta y Equipo: Muebles, Casetas y campamentos , Plantas de generación, Líneas y cables de transmisión, Líneas y cables de telecomunicaciones, Otras redes, líneas y cables, Equipo de centros de control, Otra maquinaria y equipo, Equipo de servicio ambulatorio, Muebles y enseres, Equipo de comunicación, Equipo de computación, Satélites y antenas, Equipos de radares, Equipo de transporte , entre otros Activos intangibles: Software – concesiones y Licencias – concesiones Para los activos cuya capacidad de prestar servicios es = 0, no se debe realizar evaluación de indicios de deterioro, este activo debe darse de baja.
B12: Indicios de deterioro internos | I12: SI/NO | K12: Indicios de deterioro externos | R12: SI/NO | T12: INDICIO
B13: ¿Se identifican cambios significativos en el grado de utilización o la manera como se esperan usar las Propiedades, planta y equipo o intangibles asociados al modo al acuerdo de concesión, los cuales afectarán desfavorablemente a largo plazo (más de 12 meses)? | I13: SI | K13: ¿Durante el período, han tenido lugar, cambios significativos con una incidencia adversa sobre el uso del activo, relacionados con el entorno legal, económico, político y/o ambiental, que puedan afectar el normal funcionamiento de estos a largo plazo (más de 12 meses)? | R13: NO | T13: Si alguna de las respuestas fue afirmativa, se considera que SI existe indicio de deterioro.
B14: ¿Existe evidencia de obsolescencia o deterioro físico de las propiedades, planta y equipo e intangibles que trae como consecuencia pérdida en el potencial del servicio recuperable y que puedan afectar el normal funcionamiento a largo plazo (más de 12 meses)? | I14: NO | K14: ¿Durante el periodo, existen cambios significativos con efecto desfavorable para el bien relacionados con el entorno tecnológico que sean de alto impacto, que puedan afectar el normal funcionamiento a largo plazo (más de 12 meses)? | R14: NO
B15: ¿Existe evidencia sobre pérdida en la capacidad de prestación de servicios que afecte el normal funcionamiento de las propiedades, planta y equipo e intangibles asociados al acuerdo de concesión, a largo plazo (más de 12 meses)? | I15: NO | K15: ¿Durante el periodo, el valor de mercado del activo ha disminuido significativamente más que lo que se esperaría como consecuencia del paso del tiempo o de su uso normal del activo? | R15: NO | T15: =IF(I13="SI",I13,IF(I14="SI",I14,IF(I15="SI",I15,IF(R13="SI",R13,IF(R15="si",R15,IF(R14="SI",R14,"NO")))))) -> SI
Z16: Listas | AB16: Plantas de generación | AE16: SI
B17: FASE 2 - INFORMACIÓN PARA LA DETERMINACION DEL VALOR DEL SERVICIO RECUPERABLE | Z17: Propiedades, planta y equipo | AB17: Líneas y cables de transmisión | AE17: NO
Z18: Intangibles en concesión | AB18: Líneas y cables de telecomunicaciones
B19: Tipo de Activo | C19: Clasificación del activo | D19: Detalle de activo | E19: Valor del activo/Valor de la inversión inicial (COP) | F19: Depreciación acumulada (COP) | G19: Fecha puesta en Servicio/ operación (dd/mm/aaaa) | H19: Indicio de deterioro interno identificado en el activo | K19: Indicio de deterioro externo identificado en el activo | N19: Costo de reposición a nuevo ajustado | P19: Costo de reposición a nuevo ajustado y rehabilitación | R19: Valor de mercado menos costos de disposición | AB19: Otras redes, líneas y cables
H20: ¿Se identifican cambios significativos en el grado de utilización o la manera como se esperan usar las" PPYE" o los "AI", los cuales afectarán desfavorablemente a largo plazo? | I20: ¿Existe evidencia de obsolescencia o deterioro físico de las Propiedades, planta y equipo o intangibles concesionados que trae como consecuencia pérdida en el potencial del servicio y que afectan el normal funcionamiento a largo plazo ? | J20: ¿Existe evidencia sobre pérdida en la capacidad de prestación de servicios que afecte el normal funcionamiento, a largo plazo? | K20: ¿Durante el periodo, han tenido lugar, cambios significativos con una incidencia adversa sobre el uso del activo, relacionados con el entorno legal, económico, político y/o ambiental? | L20: ¿Durante el periodo, existen cambios significativos con efecto desfavorable para el bien relacionados con el entorno tecnológico que sean de alto impacto? | M20: ¿Durante el periodo, el valor de mercado del activo ha disminuido significativamente más que lo que se esperaría como consecuencia del paso del tiempo o de su uso normal del activo? | R20: Valor de mercado | U20: Costo de disposición | AB20: Equipo de centros de control
N21: Aplica | O21: Valor Costo de Reposición (COP) | P21: Aplica | Q21: Valor Costo de Rehabilitación (COP) | R21: Existiere Valor de Mercado | S21: Aplica | T21: Valor de Mercado (COP) | U21: Aplica | V21: Valor Costo de disposición (COP) | AB21: Equipo de seguridad y rescate
N22: =+IF(OR($H22=$N$16,$I22=$N$16,$J22=$N$16,$K22=$N$16,$L22=$N$16,$M22=$N$16),"Aplica","N/A") -> Aplica | P22: =+IF(OR($I22=$N$16,$H22=$N$16),"Aplica","N/A") -> Aplica | S22: =+IF(OR($H22=$N$16,$I22=$N$16,$J22=$N$16,$K22=$N$16,$L22=$N$16,$M22=$N$16)*AND(R22="si"),"Aplica","N/A") -> N/A | U22: =+IF(S22="Aplica","Aplica","N/A") -> N/A | AB22: Otra maquinaria y equipo
N23: Aplica | P23: =+IF(OR($I23=$N$16,$H23=$N$16),"Aplica","N/A") -> Aplica | S23: N/A | U23: =+IF(S23="Aplica","Aplica","N/A") -> N/A | AB23: Equipo de servicio ambulatorio
N24: Aplica | P24: Aplica | S24: N/A | U24: N/A | AB24: Muebles y enseres
N25: Aplica | P25: Aplica | S25: N/A | U25: N/A | AB25: Equipo de comunicación
N26: Aplica | P26: Aplica | S26: N/A | U26: N/A | AB26: Equipo de computación
N27: Aplica | P27: Aplica | S27: N/A | U27: N/A | AB27: Satélites y antenas
N28: Aplica | P28: Aplica | S28: N/A | U28: N/A | AB28: Equipos de radares
N29: Aplica | P29: Aplica | S29: N/A | U29: N/A | AB29: Equipo de transporte - Terrestre
N30: Aplica | P30: Aplica | S30: N/A | U30: N/A | AB30: Equipo de transporte - De Elevación
N31: Aplica | P31: Aplica | S31: N/A | U31: N/A | AB31: Software - concesiones
AB32: Licencias - concesiones
B33: PARTE 4 - FOTOGRAFIAS DE LOS ACTIVOS NO GENERADORES DE EFECTIVO OBJETO DE DETERIORO (PP&E)
F83: 2020
F84: 2021
F85: 2022
F86: 2023
F87: 2024
F88: 2025
F89: 2026
F90: 2027
F91: 2028
F92: 2029
F93: 2030
F94: 2031
F95: 2032
F96: 2033
F97: 2034
F98: 2035
F99: 2036
F100: 2037
F101: 2038
F102: 2039
F103: 2040
F104: 2041
F105: 2042
F106: 2043
F107: 2044
F108: 2045
F109: 2046
F110: 2047

Sheet Hoja1 (hidden)
C1: Clase
B2: Anexo | C2: PROPIEDADES.PLANTA.Y.EQUIPOS | D2: SISTEMAS
B3: P.P.Y.E | C3: PROPIEDADES.PLANTA.Y.EQUIPOS | D3: SISTEMAS.Activos.Intangibles
B4: SISTEMAS
B6: ítem de inversión
B7: PROPIEDADES.PLANTA.Y.EQUIPOS | C7: SISTEMAS.Activos.Intangibles
B8: Maquinaria.y.equipo | C8: Activos.Intangibles
B9: Equipos.de.transporte.tracción.y.elevación
B10: Equipos.de.comunicación.y.computación
B12: Detalle de Ítem de Inversión
B13: Maquinaria.y.equipo | C13: Equipos.de.transporte.tracción.y.elevación | D13: Equipos.de.comunicación.y.computación | E13: Activos.Intangibles
B14: Maquinaria industrial | C14: Equipos de transporte Terrestre | D14: Equipos de comunicación | E14: Softwares - concesiones
B15: Equipo para estaciones de bombeo | C15: Equipo de transporte marítimo y fluvial | D15: Equipos de computación | E15: Activos intangibles en concesión
B16: Equipo de centros de control | C16: Equipo de tracción | D16: Otros equipos de comunicación y computación
B17: Equipo de ayuda audiovisual | C17: Equipos de elevación (grúas)
B18: Equipo de seguridad y rescate
B19: Otra maquinaria y equipo
B20: Herramientas y accesorios
C23: Enfoque | D23: Aplica pregunta
A24: 1 | B24: ¿Se identifican cambios significativos en el grado de utilización o la manera como se esperan usar las Propiedades, planta y equipo o intangibles concesionados, los cuales afectarán desfavorablemente a largo plazo (más de 12 meses)? | C24: Costo de reposición a nuevo ajustado | D24: 1,2,3, 4, 5 y 6
A25: 2 | B25: ¿Existe evidencia de obsolescencia o deterioro físico de las Propiedades, planta y equipo o intangibles concesionados que trae como consecuencia pérdida en el potencial del servicio recuperable y que puedan afectar el normal funcionamiento a largo plazo (más de 12 meses)? | C25: Enfoque del costo de rehabilitación | D25: 2
A26: 3 | B26: ¿Existe evidencia sobre pérdida en la capacidad de prestación de servicios que afecte el normal funcionamiento de las Propiedades, planta y equipo o intangibles concesionados, a largo plazo (más de 12 meses)? | C26: Valor de mercado menos costos de disposición | D26: 1,2,3, 4, 5 y 6
B28: Indicios de deterioro externos
A29: 4 | B29: ¿Durante el periodo, han tenido lugar, cambios significativos con una incidencia adversa sobre el uso del activo, relacionados con el entorno legal, económico, político y/o ambiental?
A30: 5 | B30: ¿Durante el periodo, existen cambios significativos con efecto desfavorable para el bien relacionados con el entorno tecnológico que sean de alto impacto?
A31: 6 | B31: ¿Durante el periodo, el valor de mercado del activo ha disminuido significativamente más que lo que se esperaría como consecuencia del paso del tiempo o de su uso normal del activo?

Sheet IndicesIPC (hidden)
A3: Total, Indice de Precios al Consumidor (IPC)
A5: Índices - Serie de empalme 2003 - 2021
T8: Base Diciembre de 2018 = 100,00
A9: Mes | B9: 2003 | C9: 2004 | D9: 2005 | E9: 2006 | F9: 2007 | G9: 2008 | H9: 2009 | I9: 2010 | J9: 2011 | K9: 2012 | L9: 2013 | M9: 2014 | N9: 2015 | O9: 2016 | P9: 2017 | Q9: 2018 | R9: 2019 | S9: 2020 | T9: 2021
A10: Enero | B10: 50.42 | C10: 53.54 | D10: 56.45 | E10: 59.02 | F10: 61.8 | G10: 65.51 | H10: 70.21 | I10: 71.69 | J10: 74.12 | K10: 76.75 | L10: 78.28 | M10: 79.95 | N10: 83 | O10: 89.19 | P10: 94.07 | Q10: 97.53 | R10: 100.6 | S10: 104.24 | T10: 105.91
A11: Febrero | B11: 50.98 | C11: 54.18 | D11: 57.02 | E11: 59.41 | F11: 62.53 | G11: 66.5 | H11: 70.8 | I11: 72.28 | J11: 74.57 | K11: 77.22 | L11: 78.63 | M11: 80.45 | N11: 83.96 | O11: 90.33 | P11: 95.01 | Q11: 98.22 | R11: 101.18 | S11: 104.94 | T11: 106.58
A12: Marzo | B12: 51.51 | C12: 54.71 | D12: 57.46 | E12: 59.83 | F12: 63.29 | G12: 67.04 | H12: 71.15 | I12: 72.46 | J12: 74.77 | K12: 77.31 | L12: 78.79 | M12: 80.77 | N12: 84.45 | O12: 91.18 | P12: 95.46 | Q12: 98.45 | R12: 101.62 | S12: 105.53 | T12: 107.12
A13: Abril | B13: 52.1 | C13: 54.96 | D13: 57.72 | E13: 60.09 | F13: 63.85 | G13: 67.51 | H13: 71.38 | I13: 72.79 | J13: 74.86 | K13: 77.42 | L13: 78.99 | M13: 81.14 | N13: 84.9 | O13: 91.63 | P13: 95.91 | Q13: 98.91 | R13: 102.12 | S13: 105.7 | T13: 107.76
A14: Mayo | B14: 52.36 | C14: 55.17 | D14: 57.95 | E14: 60.29 | F14: 64.05 | G14: 68.14 | H14: 71.39 | I14: 72.87 | J14: 75.07 | K14: 77.66 | L14: 79.21 | M14: 81.53 | N14: 85.12 | O14: 92.1 | P14: 96.12 | Q14: 99.16 | R14: 102.44 | S14: 105.36 | T14: 108.84 | V14: 5 | W14: =+V14*12 -> 60 | X14: =+V15/W14 -> 1533333.333 | Y14: =+X14*W15 -> 1585061.294
A15: Junio | B15: 52.33 | C15: 55.51 | D15: 58.18 | E15: 60.48 | F15: 64.12 | G15: 68.73 | H15: 71.35 | I15: 72.95 | J15: 75.31 | K15: 77.72 | L15: 79.39 | M15: 81.61 | N15: 85.21 | O15: 92.54 | P15: 96.23 | Q15: 99.31 | R15: 102.71 | S15: 104.97 | T15: 108.78 | V15: 92000000 | W15: =+(T15/S19) -> 1.033735627 | X15: =+X14*9 -> 13800000
A16: Julio | B16: 52.26 | C16: 55.49 | D16: 58.21 | E16: 60.73 | F16: 64.23 | G16: 69.06 | H16: 71.32 | I16: 72.92 | J16: 75.42 | K16: 77.7 | L16: 79.43 | M16: 81.73 | N16: 85.37 | O16: 93.02 | P16: 96.18 | Q16: 99.18 | R16: 102.94 | S16: 104.97 | W16: =+V15*W15 -> 95103677.66 | X16: =+W16-X15 -> 81303677.66 | Y16: =+W16/W14 -> 1585061.294 | Z16: =+Y16*9 -> 14265551.65
A17: Agosto | B17: 52.42 | C17: 55.51 | D17: 58.21 | E17: 60.96 | F17: 64.14 | G17: 69.19 | H17: 71.35 | I17: 73 | J17: 75.39 | K17: 77.73 | L17: 79.5 | M17: 81.9 | N17: 85.78 | O17: 92.73 | P17: 96.32 | Q17: 99.3 | R17: 103.03 | S17: 104.96 | Z17: =+W16-Z16 -> 80838126.01
A18: Septiembre | B18: 52.53 | C18: 55.67 | D18: 58.46 | E18: 61.14 | F18: 64.2 | G18: 69.06 | H18: 71.28 | I18: 72.9 | J18: 75.62 | K18: 77.96 | L18: 79.73 | M18: 82.01 | N18: 86.39 | O18: 92.68 | P18: 96.36 | Q18: 99.47 | R18: 103.26 | S18: 105.29 | W18: =+V15-X15 -> 78200000
A19: Octubre | B19: 52.56 | C19: 55.66 | D19: 58.6 | E19: 61.05 | F19: 64.2 | G19: 69.3 | H19: 71.19 | I19: 72.84 | J19: 75.77 | K19: 78.08 | L19: 79.52 | M19: 82.14 | N19: 86.98 | O19: 92.62 | P19: 96.37 | Q19: 99.59 | R19: 103.43 | S19: 105.23 | Y19: =+(V15-X15)*W15 -> 80838126.01
A20: Noviembre | B20: 52.75 | C20: 55.82 | D20: 58.66 | E20: 61.19 | F20: 64.51 | G20: 69.49 | H20: 71.14 | I20: 72.98 | J20: 75.87 | K20: 77.98 | L20: 79.35 | M20: 82.25 | N20: 87.51 | O20: 92.73 | P20: 96.55 | Q20: 99.7 | R20: 103.54 | S20: 105.08
A21: Diciembre | B21: 53.07 | C21: 55.99 | D21: 58.7 | E21: 61.33 | F21: 64.82 | G21: 69.8 | H21: 71.2 | I21: 73.45 | J21: 76.19 | K21: 78.05 | L21: 79.56 | M21: 82.47 | N21: 88.05 | O21: 93.11 | P21: 96.92 | Q21: 100 | R21: 103.8 | S21: 105.48
A24: Fuente: DANE.
A25: Nota: La diferencia en la suma de las variables, obedece al sistema de aproximación y redondeo.
A26: Actualizado el 3 de julio de 2021

Sheet Hoja2 (hidden)
B2: En construcción
B3: En servicio
B5: 1
B6: 2
B8: NO
B9: SI
